{"text_format":"1","workbook":"xlsx","n_sheets":2,"sheets":["VZZ 2021","VZZ s přiřazenými účty"],"not_rendered":{"charts":0,"images":0,"macros":1,"external_links":1,"defined_names":2,"comments":0,"pivot_tables":0},"unopened":[],"bounds":{"document_bytes":16777216,"sheet_cells":100000,"rows_first":2000,"rows_last":500,"rows_between":2000,"halvings":0,"cell_chars":16384,"cell_head_chars":4096},"cells_cut":0,"cells_raw":0,"read":"whole","date_system":"1900"}

{"sheet":"VZZ 2021","index":0,"n_rows":91,"n_cols":31,"rows_kept":91,"cut":false,"hidden":false,"merged":[[7,13,7,23],[7,26,7,35],[3,26,3,35],[4,26,4,35],[5,14,5,22],[5,26,5,35],[1,14,1,22],[1,26,1,35],[2,14,2,22],[2,26,2,35],[6,13,6,23],[6,26,6,35],[8,26,8,35],[9,26,9,35],[10,26,10,35],[72,30,72,35],[70,30,70,35],[70,24,70,29],[69,30,69,35],[69,24,69,29],[68,30,68,35],[65,30,65,35],[72,0,72,3],[17,22,18,23],[19,22,19,23],[20,4,20,21],[69,0,69,3],[70,0,70,3],[71,4,71,21],[69,4,69,21],[71,0,71,3],[70,22,70,23],[72,22,72,23],[72,24,72,29],[21,22,21,23],[71,22,71,23],[71,24,71,29],[23,22,23,23],[69,22,69,23],[27,22,27,23],[26,22,26,23],[70,4,70,21],[25,22,25,23],[24,22,24,23],[68,1,68,3],[68,22,68,23],[33,1,33,3],[33,22,33,23],[66,0,66,3],[65,0,65,3],[39,1,39,3],[68,4,68,21],[67,30,67,35],[28,1,28,3],[28,22,28,23],[67,1,67,3],[67,22,67,23],[67,24,67,29],[67,4,67,21],[66,4,66,21],[66,22,66,23],[66,24,66,29],[32,22,32,23],[65,22,65,23],[39,22,39,23],[65,24,65,29],[35,22,35,23],[63,24,63,29],[68,24,68,29],[45,1,45,3],[56,1,56,3],[55,1,55,3],[46,1,46,3],[44,1,44,3],[47,1,47,3],[61,22,61,23],[65,4,65,21],[56,22,56,23],[57,22,57,23],[45,22,45,23],[60,22,60,23],[60,4,60,21],[58,4,58,21],[61,4,61,21],[46,4,46,21],[62,4,62,21],[64,30,64,35],[34,22,34,23],[64,1,64,3],[64,22,64,23],[64,24,64,29],[64,4,64,21],[37,1,37,3],[37,22,37,23],[38,22,38,23],[43,4,43,21],[57,4,57,21],[48,22,48,23],[54,4,54,21],[55,22,55,23],[63,1,63,3],[63,22,63,23],[63,4,63,21],[61,0,61,3],[62,0,62,3],[43,1,43,3],[60,1,60,3],[59,1,59,3],[57,0,57,3],[62,22,62,23],[62,24,62,29],[41,22,41,23],[61,30,61,35],[61,24,61,29],[43,22,43,23],[60,30,60,35],[60,24,60,29],[45,24,45,29],[59,22,59,23],[58,0,58,3],[48,4,48,21],[58,22,58,23],[58,24,58,29],[48,0,48,3],[52,0,53,3],[54,24,54,29],[54,0,54,3],[47,22,47,23],[52,22,53,23],[53,24,53,29],[55,4,55,21],[56,4,56,21],[27,24,27,29],[33,30,33,35],[47,24,47,29],[34,30,34,35],[46,24,46,29],[47,4,47,21],[44,22,44,23],[47,30,47,35],[48,30,48,35],[53,30,53,35],[30,22,30,23],[24,30,24,35],[22,24,22,29],[23,24,23,29],[24,24,24,29],[23,30,23,35],[48,24,48,29],[25,30,25,35],[26,30,26,35],[25,24,25,29],[26,24,26,29],[30,2,30,3],[41,1,41,3],[29,1,29,3],[29,22,29,23],[42,0,42,3],[36,22,36,23],[32,0,32,3],[32,4,32,21],[40,1,40,3],[38,0,38,3],[35,2,35,3],[34,2,34,3],[35,4,35,21],[32,30,32,35],[31,24,31,29],[32,24,32,29],[35,30,35,35],[33,4,33,21],[34,4,34,21],[31,2,31,3],[45,4,45,21],[52,4,53,21],[42,4,42,21],[44,4,44,21],[33,24,33,29],[39,24,39,29],[30,4,30,21],[31,4,31,21],[39,4,39,21],[46,22,46,23],[34,24,34,29],[30,24,30,29],[40,22,40,23],[40,24,40,29],[42,22,42,23],[41,4,41,21],[23,4,23,21],[24,4,24,21],[38,4,38,21],[28,4,28,21],[29,4,29,21],[28,24,28,29],[29,24,29,29],[43,30,43,35],[21,4,21,21],[22,4,22,21],[29,30,29,35],[30,30,30,35],[41,24,41,29],[42,24,42,29],[41,30,41,35],[27,30,27,35],[28,30,28,35],[31,22,31,23],[31,30,31,35],[43,24,43,29],[37,24,37,29],[38,24,38,29],[36,30,36,35],[35,24,35,29],[36,24,36,29],[40,4,40,21],[25,4,25,21],[26,4,26,21],[27,4,27,21],[36,4,36,21],[74,30,74,35],[54,30,54,35],[37,30,37,35],[38,30,38,35],[56,30,56,35],[73,30,73,35],[46,30,46,35],[42,30,42,35],[39,30,39,35],[52,24,52,35],[40,30,40,35],[45,30,45,35],[44,30,44,35],[44,24,44,29],[63,30,63,35],[62,30,62,35],[59,30,59,35],[58,30,58,35],[57,30,57,35],[66,30,66,35],[71,30,71,35],[16,0,16,36],[18,30,18,35],[18,24,18,29],[17,24,17,35],[17,4,18,21],[17,0,18,3],[59,24,59,29],[72,4,72,21],[59,4,59,21],[57,24,57,29],[56,24,56,29],[55,24,55,29],[55,30,55,35],[54,22,54,23],[19,30,19,35],[20,30,20,35],[21,30,21,35],[22,30,22,35],[19,4,19,21],[21,24,21,29],[22,22,22,23],[20,22,20,23],[19,24,19,29],[20,24,20,29],[75,4,75,21],[74,1,74,3],[73,22,73,23],[73,24,73,29],[74,24,74,29],[74,4,74,21],[73,4,73,21],[74,22,74,23],[73,0,73,3],[90,1,90,7],[90,8,90,35],[89,1,89,35],[88,1,88,35],[77,0,77,3],[77,30,77,35],[78,22,78,23],[87,1,87,13],[78,0,78,3],[79,0,79,3],[79,4,79,21],[77,4,77,21],[79,22,79,23],[79,24,79,29],[19,0,19,3],[20,0,20,3],[21,0,21,3],[25,0,25,3],[79,30,79,35],[76,22,76,23],[76,24,76,29],[22,1,22,3],[26,0,26,3],[27,0,27,3],[36,1,36,3],[37,4,37,21],[75,30,75,35],[78,24,78,29],[78,30,78,35],[78,4,78,21],[77,22,77,23],[77,24,77,29],[76,30,76,35],[76,0,76,3],[76,4,76,21],[75,1,75,3],[75,22,75,23],[75,24,75,29]]}
[]
[null,"Minimální závazný výčet informací",null,null,null,null,null,null,null,null,null,null,null,null,"VÝKAZ ZISKU A ZTRÁTY",null,null,null,null,null,null,null,null,null,null,null,"Jméno a příjmení, obchodní firma nebo jiný "]
[null,"podle vyhlášky č. 500/2002 Sb.",null,null,null,null,null,null,null,null,null,null,null,null,"v plném rozsahu (druhové členění)",null,null,null,null,null,null,null,null,null,null,null,"název účetní jednotky"]
[null,"ve znění pozdějších předpisů",null,null,null,null,null,null,null,null,null,null,null,null,null,null,null,null,null,null,null,null,null,null,null,null,"……………………………………"]
[null,"k 1.1.2021",null,null,null,null,null,null,null,null,null,null,null,"ke dni …………………………………",null,null,null,null,null,null,null,null,null,null,null,null,"……………………………………"]
[null,null,null,null,null,null,null,null,null,null,null,null,null,null,"(v celých tisících Kč)"]
[null,null,null,null,null,null,null,null,null,null,null,null,null,"IČ",null,null,null,null,null,null,null,null,null,null,null,null,"Sídlo nebo bydliště účetní jednotky"]
[null,null,null,null,null,null,null,null,null,null,null,null,null,null,null,null,null,null,null,null,null,null,null,null,null,null,"a místo podnikání liší-li se od bydliště"]
[null,null,null,null,null,null,null,null,null,null,null,null,null,null,null,null,null,null,null,null,null,null,null,null,null,null,"……………………………………"]
[null,null,null,null,null,null,null,null,null,null,null,null,null,null,null,null,null,null,null,null,null,null,null,null,null,null,"……………………………………"]
[null,null,null,null,null,null,null,null,null,null,null,null,null,null,null,null,null,null,null,null,null,null,null,null,null,null,"……………………………………"]
[]
[]
[]
[]
[]
[]
["Označení\n\n\na",null,null,null,"TEXT            \n\n\nb",null,null,null,null,null,null,null,null,null,null,null,null,null,null,null,null,null,"Číslo řádku\n\nc",null,"Skutečnost v účetním období"]
[null,null,null,null,null,null,null,null,null,null,null,null,null,null,null,null,null,null,null,null,null,null,null,null,"běžném\n1",null,null,null,null,null,"minulém\n2"]
["I.",null,null,null,"Tržby za prodej vlastních výrobků a služeb",null,null,null,null,null,null,null,null,null,null,null,null,null,null,null,null,null,1]
["II.",null,null,null,"Tržby za prodej zboží",null,null,null,null,null,null,null,null,null,null,null,null,null,null,null,null,null,2]
["A.",null,null,null,"Výkonová spotřeba                                                                                    (ř. 4 až 6)",null,null,null,null,null,null,null,null,null,null,null,null,null,null,null,null,null,3,null,{"$f":"Y20-Y21","v":0},null,null,null,null,null,{"$f":"AE20-AE21","v":0}]
[null,"A.1.",null,null,"Náklady vynaložené na prodané zboží",null,null,null,null,null,null,null,null,null,null,null,null,null,null,null,null,null,4,null,{"$f":"SUM(Y24:AD26)","v":0},null,null,null,null,null,{"$f":"SUM(AE24:AJ26)","v":0}]
[null,"A.2.",null,null,"Spotřeba materiálu a energie",null,null,null,null,null,null,null,null,null,null,null,null,null,null,null,null,null,5]
[null,"A.3.",null,null,"Služby",null,null,null,null,null,null,null,null,null,null,null,null,null,null,null,null,null,6]
["B.",null,null,null,"Změna stavu zásob vlastní činnosti (+/-)",null,null,null,null,null,null,null,null,null,null,null,null,null,null,null,null,null,7]
["C.",null,null,null,"Aktivace (-)",null,null,null,null,null,null,null,null,null,null,null,null,null,null,null,null,null,8,null,{"$f":"Y28+Y29","v":0},null,null,null,null,null,{"$f":"AE28+AE29","v":0}]
["D.",null,null,null,"Osobní náklady                                                                                       (ř. 10 + 11)",null,null,null,null,null,null,null,null,null,null,null,null,null,null,null,null,null,9]
[null,"D.1.",null,null,"Mzdové náklady",null,null,null,null,null,null,null,null,null,null,null,null,null,null,null,null,null,10]
[null,"D.2.",null,null,"Náklady na sociální zabezpečení, zdravotní pojištění a ostatní náklady (ř.12 + 13)",null,null,null,null,null,null,null,null,null,null,null,null,null,null,null,null,null,11,null,{"$f":"Y22+Y23-Y27","v":0},null,null,null,null,null,{"$f":"AE22+AE23-AE27","v":0}]
[null,null,"D.2.1.",null,"Náklady na sociální zabezpečení a zdravotní pojištění",null,null,null,null,null,null,null,null,null,null,null,null,null,null,null,null,null,12,null,{"$f":"SUM(Y32:AD35)","v":0},null,null,null,null,null,{"$f":"SUM(AE32:AJ35)","v":0}]
[null,null,"D.2.2.",null,"Ostatní náklady",null,null,null,null,null,null,null,null,null,null,null,null,null,null,null,null,null,13]
["E.",null,null,null,"Úpravy hodnot v provozní oblasti                                                   (ř. 15 + 18 + 19)",null,null,null,null,null,null,null,null,null,null,null,null,null,null,null,null,null,14]
[null,"E.1.",null,null,"Úpravy hodnot dlouhodobého nehmotného a hmotného majetku   (ř. 16 + 17)",null,null,null,null,null,null,null,null,null,null,null,null,null,null,null,null,null,15]
[null,null,"E.1.1.",null,"Úpravy hodnot dlouhodobého nehmotného a hmotného majetku - trvalé",null,null,null,null,null,null,null,null,null,null,null,null,null,null,null,null,null,16]
[null,null,"E.1.2.",null,"Úpravy hodnot dlouhodobého nehmotného a hmotného majetku - dočasné",null,null,null,null,null,null,null,null,null,null,null,null,null,null,null,null,null,17]
[null,"E.2.",null,null,"Úpravy hodnot zásob",null,null,null,null,null,null,null,null,null,null,null,null,null,null,null,null,null,18]
[null,"E.3.",null,null,"Úpravy hodnot pohledávek",null,null,null,null,null,null,null,null,null,null,null,null,null,null,null,null,null,19,null,{"$f":"Y39+Y40","v":0},null,null,null,null,null,{"$f":"AE39+AE40","v":0}]
["III.",null,null,null,"Ostatní provozní výnosy                                                                        (ř. 21 až 23)",null,null,null,null,null,null,null,null,null,null,null,null,null,null,null,null,null,20]
[null,"III.1.",null,null,"Tržby z prodaného dlouhodobého majetku",null,null,null,null,null,null,null,null,null,null,null,null,null,null,null,null,null,21]
[null,"III.2.",null,null,"Tržby z prodaného materiálu",null,null,null,null,null,null,null,null,null,null,null,null,null,null,null,null,null,22,null,{"$f":"Y42+Y43","v":0},null,null,null,null,null,{"$f":"AE42+AE43","v":0}]
[null,"III.3.",null,null,"Jiné provozní výnosy",null,null,null,null,null,null,null,null,null,null,null,null,null,null,null,null,null,23]
["F.",null,null,null,"Ostatní provozní náklady                                                                      (ř. 25 až 29)",null,null,null,null,null,null,null,null,null,null,null,null,null,null,null,null,null,24]
[null,"F.1.",null,null,"Zůstatková cena prodaného dlouhodobého majetku",null,null,null,null,null,null,null,null,null,null,null,null,null,null,null,null,null,25]
[null,"F.2.",null,null,"Prodaný materiál",null,null,null,null,null,null,null,null,null,null,null,null,null,null,null,null,null,26]
[null,"F.3.",null,null,"Daně a poplatky",null,null,null,null,null,null,null,null,null,null,null,null,null,null,null,null,null,27]
[null,"F.4.",null,null,"Rezervy v provozní oblasti a komplexní náklady příštích období",null,null,null,null,null,null,null,null,null,null,null,null,null,null,null,null,null,28]
[null,"F.5.",null,null,"Jiné provozní náklady",null,null,null,null,null,null,null,null,null,null,null,null,null,null,null,null,null,29]
["*",null,null,null,"Provozní výsledek hospodaření  (+/-)                                                                               [ř. 1 + 2 - 3 - (+/-) 7 - (-) 8 - 9 - (+/-) 14 + 20 - 24]",null,null,null,null,null,null,null,null,null,null,null,null,null,null,null,null,null,30,null,{"$f":"Y30-Y31-Y36-Y37+Y38-Y41-Y44+Y45-Y46+(-Y47)-(-Y48)","v":0},null,null,null,null,null,{"$f":"AE30-AE31-AE36-AE37+AE38-AE41-AE44+AE45-AE46+(-AE47)-(-AE48)","v":0}]
[]
[]
[]
["Označení\n\n\na",null,null,null,"TEXT            \n\n\nb",null,null,null,null,null,null,null,null,null,null,null,null,null,null,null,null,null,"Číslo řádku\n\nc",null,"Skutečnost v účetním období"]
[null,null,null,null,null,null,null,null,null,null,null,null,null,null,null,null,null,null,null,null,null,null,null,null,"běžném\n1",null,null,null,null,null,"minulém\n2"]
["IV.",null,null,null,"Výnosy z dlouhodobého finančního majetku - podíly                              (ř. 32 + 33)",null,null,null,null,null,null,null,null,null,null,null,null,null,null,null,null,null,31]
[null,"IV.1.",null,null,"Výnosy z podílů - ovládaná nebo ovládající osoba",null,null,null,null,null,null,null,null,null,null,null,null,null,null,null,null,null,32]
[null,"IV.2.",null,null,"Ostatní výnosy z podílů",null,null,null,null,null,null,null,null,null,null,null,null,null,null,null,null,null,33,null,{"$f":"SUM(Y58:AD60)","v":0},null,null,null,null,null,{"$f":"SUM(AE58:AJ60)","v":0}]
["G.",null,null,null,"Náklady vynaložené na prodané podíly",null,null,null,null,null,null,null,null,null,null,null,null,null,null,null,null,null,{"$f":"W57+1","v":34}]
["V.","    VII. 2.",null,null,"Výnosy z ostatního dlouhodobého finančního majetku                           (ř. 36 + 37)",null,null,null,null,null,null,null,null,null,null,null,null,null,null,null,null,null,35]
[null,"V.1.",null,null,"Výnosy z ostatního dlouhodobého finančního majetku  - ovládaná nebo ovládající osoba",null,null,null,null,null,null,null,null,null,null,null,null,null,null,null,null,null,36]
[null,"V.2.",null,null,"Ostatní výnosy z ostatního dlouhodobého finančního majetku",null,null,null,null,null,null,null,null,null,null,null,null,null,null,null,null,null,37]
["H.","K.",null,null,"Náklady související s ostatním dlouhodobým finančním majetkem",null,null,null,null,null,null,null,null,null,null,null,null,null,null,null,null,null,38]
["VI.","     IX.",null,null,"Výnosové úroky a podobné výnosy                                                        (ř. 40 + 41)",null,null,null,null,null,null,null,null,null,null,null,null,null,null,null,null,null,39]
[null,"VI.1.",null,null,"Výnosové úroky a podobné výnosy - ovládaná nebo ovládající osoba",null,null,null,null,null,null,null,null,null,null,null,null,null,null,null,null,null,40]
[null,"VI.2.",null,null,"Ostatní výnosové úroky a podobné výnosy",null,null,null,null,null,null,null,null,null,null,null,null,null,null,null,null,null,41]
["I.","     X.",null,null,"Úprava hodnot a rezervy ve finanční oblasti",null,null,null,null,null,null,null,null,null,null,null,null,null,null,null,null,null,42]
["J.","N.",null,null,"Nákladové úroky a podobné náklady                                                     (ř. 44 + 45)",null,null,null,null,null,null,null,null,null,null,null,null,null,null,null,null,null,43]
[null,"J.1.",null,null,"Nákladové úroky a podobné náklady - ovládaná nebo ovládající osoba",null,null,null,null,null,null,null,null,null,null,null,null,null,null,null,null,null,44]
[null,"J.2.",null,null,"Ostatní nákladové úroky a podobné náklady",null,null,null,null,null,null,null,null,null,null,null,null,null,null,null,null,null,45]
["VII.","    XII.",null,null,"Ostatní finanční výnosy",null,null,null,null,null,null,null,null,null,null,null,null,null,null,null,null,null,46]
["K.","P.",null,null,"Ostatní finanční náklady",null,null,null,null,null,null,null,null,null,null,null,null,null,null,null,null,null,47]
["*",null,null,null,"Finanční výsledek hospodaření  (+/-)                                                                                                                       [ř. 31 - 34 + 35 - 38 + 39 -(+/-) 42 - 43 + 46 - 47]",null,null,null,null,null,null,null,null,null,null,null,null,null,null,null,null,null,48,null,{"$f":"Y55-Y56+Y57+Y61-Y62+Y63-Y64-Y65+Y66-Y67+Y68-Y69+(-Y70)-(-Y71)","v":0},null,null,null,null,null,{"$f":"AE55-AE56+AE57+AE61-AE62+AE63-AE64-AE65+AE66-AE67+AE68-AE69+(-AE70)-(-AE71)","v":0}]
["**","Q.",null,null,"Výsledek hospodaření před zdaněním  (+/-)                                     (ř. 30 + 48)                           ",null,null,null,null,null,null,null,null,null,null,null,null,null,null,null,null,null,49,null,{"$f":"Y74+Y75","v":0},null,null,null,null,null,{"$f":"AE74+AE75","v":0}]
["L.","Q. 1.",null,null,"Daň z příjmů                                                                                     (ř. 51 + (+/-) 52)",null,null,null,null,null,null,null,null,null,null,null,null,null,null,null,null,null,50]
[null,"L.1.",null,null,"Daň z příjmů splatná",null,null,null,null,null,null,null,null,null,null,null,null,null,null,null,null,null,51]
[null,"L.2.",null,null,"Daň z příjmů odložená  (+/-)",null,null,null,null,null,null,null,null,null,null,null,null,null,null,null,null,null,52,null,{"$f":"Y49+Y72-Y73","v":0},null,null,null,null,null,{"$f":"AE49+AE72-AE73","v":0}]
["**","Q.",null,null,"Výsledek hospodaření po zdanění  (+/-)                                             (ř. 49 - 50)",null,null,null,null,null,null,null,null,null,null,null,null,null,null,null,null,null,53]
["M.","R.",null,null,"Převod podílu na výsledku hospodaření společníkům (+/-)",null,null,null,null,null,null,null,null,null,null,null,null,null,null,null,null,null,54]
["***","Q.",null,null,"Výsledek hospodaření za účetní období (+/-)                                    (ř. 53 - 54)",null,null,null,null,null,null,null,null,null,null,null,null,null,null,null,null,null,55,null,{"$f":"Y80+Y81","v":0},null,null,null,null,null,{"$f":"AE80+AE81","v":0}]
["*","Q.",null,null,"Čistý obrat za účetní období                              (ř. 1 + 2 + 20 + 31 + 35 + 39 + 46)",null,null,null,null,null,null,null,null,null,null,null,null,null,null,null,null,null,56]
[]
[]
[]
[]
[]
[]
[]
[null,"Sestaveno dne: ……………………………."]
[null,"Právní forma účetní jednotky: ……………………………………………………………………………………………………"]
[null,"Předmět podnikání účetní jednotky: ………………………………………………………………………………………………"]
[null,"Podpisový záznam: "]

{"sheet":"VZZ s přiřazenými účty","index":1,"n_rows":90,"n_cols":31,"rows_kept":90,"cut":false,"hidden":false,"merged":[[86,1,86,13],[87,1,87,35],[88,1,88,35],[89,1,89,7],[89,8,89,35],[77,30,77,35],[78,0,78,3],[78,4,78,21],[78,22,78,23],[78,24,78,29],[78,30,78,35],[77,0,77,3],[77,4,77,21],[77,22,77,23],[77,24,77,29],[75,30,75,35],[76,0,76,3],[76,4,76,21],[76,22,76,23],[76,24,76,29],[76,30,76,35],[75,0,75,3],[75,4,75,21],[75,22,75,23],[75,24,75,29],[73,30,73,35],[74,1,74,3],[74,4,74,21],[74,22,74,23],[74,24,74,29],[74,30,74,35],[73,1,73,3],[73,4,73,21],[73,22,73,23],[73,24,73,29],[71,30,71,35],[72,0,72,3],[72,4,72,21],[72,22,72,23],[72,24,72,29],[72,30,72,35],[71,0,71,3],[71,4,71,21],[71,22,71,23],[71,24,71,29],[69,30,69,35],[70,0,70,3],[70,4,70,21],[70,22,70,23],[70,24,70,29],[70,30,70,35],[69,0,69,3],[69,4,69,21],[69,22,69,23],[69,24,69,29],[67,30,67,35],[68,0,68,3],[68,4,68,21],[68,22,68,23],[68,24,68,29],[68,30,68,35],[67,1,67,3],[67,4,67,21],[67,22,67,23],[67,24,67,29],[65,30,65,35],[66,1,66,3],[66,4,66,21],[66,22,66,23],[66,24,66,29],[66,30,66,35],[65,0,65,3],[65,4,65,21],[65,22,65,23],[65,24,65,29],[63,30,63,35],[64,0,64,3],[64,4,64,21],[64,22,64,23],[64,24,64,29],[64,30,64,35],[63,1,63,3],[63,4,63,21],[63,22,63,23],[63,24,63,29],[61,30,61,35],[62,1,62,3],[62,4,62,21],[62,22,62,23],[62,24,62,29],[62,30,62,35],[61,0,61,3],[61,4,61,21],[61,22,61,23],[61,24,61,29],[59,30,59,35],[60,0,60,3],[60,4,60,21],[60,22,60,23],[60,24,60,29],[60,30,60,35],[59,1,59,3],[59,4,59,21],[59,22,59,23],[59,24,59,29],[57,30,57,35],[58,1,58,3],[58,4,58,21],[58,22,58,23],[58,24,58,29],[58,30,58,35],[57,0,57,3],[57,4,57,21],[57,22,57,23],[57,24,57,29],[55,30,55,35],[56,0,56,3],[56,4,56,21],[56,22,56,23],[56,24,56,29],[56,30,56,35],[55,1,55,3],[55,4,55,21],[55,22,55,23],[55,24,55,29],[53,30,53,35],[54,1,54,3],[54,4,54,21],[54,22,54,23],[54,24,54,29],[54,30,54,35],[53,0,53,3],[53,4,53,21],[53,22,53,23],[53,24,53,29],[51,0,52,3],[51,4,52,21],[51,22,52,23],[51,24,51,35],[52,24,52,29],[52,30,52,35],[47,30,47,35],[48,0,48,3],[48,4,48,21],[48,22,48,23],[48,24,48,29],[48,30,48,35],[47,1,47,3],[47,4,47,21],[47,22,47,23],[47,24,47,29],[45,30,45,35],[46,1,46,3],[46,4,46,21],[46,22,46,23],[46,24,46,29],[46,30,46,35],[45,1,45,3],[45,4,45,21],[45,22,45,23],[45,24,45,29],[43,30,43,35],[44,1,44,3],[44,4,44,21],[44,22,44,23],[44,24,44,29],[44,30,44,35],[43,1,43,3],[43,4,43,21],[43,22,43,23],[43,24,43,29],[41,30,41,35],[42,0,42,3],[42,4,42,21],[42,22,42,23],[42,24,42,29],[42,30,42,35],[41,1,41,3],[41,4,41,21],[41,22,41,23],[41,24,41,29],[39,30,39,35],[40,1,40,3],[40,4,40,21],[40,22,40,23],[40,24,40,29],[40,30,40,35],[39,1,39,3],[39,4,39,21],[39,22,39,23],[39,24,39,29],[37,30,37,35],[38,0,38,3],[38,4,38,21],[38,22,38,23],[38,24,38,29],[38,30,38,35],[37,1,37,3],[37,4,37,21],[37,22,37,23],[37,24,37,29],[35,30,35,35],[36,1,36,3],[36,4,36,21],[36,22,36,23],[36,24,36,29],[36,30,36,35],[35,2,35,3],[35,4,35,21],[35,22,35,23],[35,24,35,29],[33,30,33,35],[34,2,34,3],[34,4,34,21],[34,22,34,23],[34,24,34,29],[34,30,34,35],[33,1,33,3],[33,4,33,21],[33,22,33,23],[33,24,33,29],[31,30,31,35],[32,0,32,3],[32,4,32,21],[32,22,32,23],[32,24,32,29],[32,30,32,35],[31,2,31,3],[31,4,31,21],[31,22,31,23],[31,24,31,29],[29,30,29,35],[30,2,30,3],[30,4,30,21],[30,22,30,23],[30,24,30,29],[30,30,30,35],[29,1,29,3],[29,4,29,21],[29,22,29,23],[29,24,29,29],[27,30,27,35],[28,1,28,3],[28,4,28,21],[28,22,28,23],[28,24,28,29],[28,30,28,35],[27,0,27,3],[27,4,27,21],[27,22,27,23],[27,24,27,29],[25,30,25,35],[26,0,26,3],[26,4,26,21],[26,22,26,23],[26,24,26,29],[26,30,26,35],[25,0,25,3],[25,4,25,21],[25,22,25,23],[24,30,24,35],[23,4,23,21],[23,22,23,23],[23,24,23,29],[23,30,23,35],[19,22,19,23],[19,24,19,29],[21,30,21,35],[25,24,25,29],[21,22,21,23],[21,24,21,29],[24,4,24,21],[24,22,24,23],[24,24,24,29],[19,30,19,35],[20,0,20,3],[20,4,20,21],[20,22,20,23],[20,24,20,29],[20,30,20,35],[19,0,19,3],[19,4,19,21],[22,1,22,3],[22,4,22,21],[22,22,22,23],[22,24,22,29],[22,30,22,35],[21,0,21,3],[21,4,21,21],[17,0,18,3],[17,4,18,21],[17,22,18,23],[17,24,17,35],[18,24,18,29],[18,30,18,35],[8,26,8,35],[9,26,9,35],[10,26,10,35],[16,0,16,36],[7,13,7,23],[7,26,7,35],[1,14,1,22],[1,26,1,35],[2,14,2,22],[2,26,2,35],[3,26,3,35],[4,26,4,35],[5,14,5,22],[5,26,5,35],[6,13,6,23],[6,26,6,35]]}
[]
[null,"Minimální závazný výčet informací",null,null,null,null,null,null,null,null,null,null,null,null,"VÝKAZ ZISKU A ZTRÁTY",null,null,null,null,null,null,null,null,null,null,null,"Jméno a příjmení, obchodní firma nebo jiný "]
[null,"podle vyhlášky č. 500/2002 Sb.",null,null,null,null,null,null,null,null,null,null,null,null,"v plném rozsahu (druhové členění)",null,null,null,null,null,null,null,null,null,null,null,"název účetní jednotky"]
[null,"ve znění pozdějších předpisů",null,null,null,null,null,null,null,null,null,null,null,null,null,null,null,null,null,null,null,null,null,null,null,null,"……………………………………"]
[null,"k 1.1.2021",null,null,null,null,null,null,null,null,null,null,null,"ke dni …………………………………",null,null,null,null,null,null,null,null,null,null,null,null,"……………………………………"]
[null,null,null,null,null,null,null,null,null,null,null,null,null,null,"(v celých tisících Kč)"]
[null,null,null,null,null,null,null,null,null,null,null,null,null,"IČ",null,null,null,null,null,null,null,null,null,null,null,null,"Sídlo nebo bydliště účetní jednotky"]
[null,null,null,null,null,null,null,null,null,null,null,null,null,null,null,null,null,null,null,null,null,null,null,null,null,null,"a místo podnikání liší-li se od bydliště"]
[null,null,null,null,null,null,null,null,null,null,null,null,null,null,null,null,null,null,null,null,null,null,null,null,null,null,"……………………………………"]
[null,null,null,null,null,null,null,null,null,null,null,null,null,null,null,null,null,null,null,null,null,null,null,null,null,null,"……………………………………"]
[null,null,null,null,null,null,null,null,null,null,null,null,null,null,null,null,null,null,null,null,null,null,null,null,null,null,"……………………………………"]
[]
[]
[]
[]
[]
[]
["Označení\n\n\na",null,null,null,"TEXT            \n\n\nb",null,null,null,null,null,null,null,null,null,null,null,null,null,null,null,null,null,"Číslo řádku\n\nc",null,"Skutečnost v účetním období"]
[null,null,null,null,null,null,null,null,null,null,null,null,null,null,null,null,null,null,null,null,null,null,null,null,"běžném - přiřazené účty\n1",null,null,null,null,null,"minulém\n2"]
["I.",null,null,null,"Tržby za prodej vlastních výrobků a služeb",null,null,null,null,null,null,null,null,null,null,null,null,null,null,null,null,null,1,null,"601, 602"]
["II.",null,null,null,"Tržby za prodej zboží",null,null,null,null,null,null,null,null,null,null,null,null,null,null,null,null,null,2,null,604]
["A.",null,null,null,"Výkonová spotřeba                                                                                    (ř. 4 až 6)",null,null,null,null,null,null,null,null,null,null,null,null,null,null,null,null,null,3,null,null,null,null,null,null,null,{"$f":"AE20-AE21","v":0}]
[null,"A.1.",null,null,"Náklady vynaložené na prodané zboží",null,null,null,null,null,null,null,null,null,null,null,null,null,null,null,null,null,4,null,504,null,null,null,null,null,{"$f":"SUM(AE24:AJ26)","v":0}]
[null,"A.2.",null,null,"Spotřeba materiálu a energie",null,null,null,null,null,null,null,null,null,null,null,null,null,null,null,null,null,5,null,"501, 502, 503"]
[null,"A.3.",null,null,"Služby",null,null,null,null,null,null,null,null,null,null,null,null,null,null,null,null,null,6,null,"511, 512, 513, 518"]
["B.",null,null,null,"Změna stavu zásob vlastní činnosti (+/-)",null,null,null,null,null,null,null,null,null,null,null,null,null,null,null,null,null,7,null,"581, 582, 583, 584"]
["C.",null,null,null,"Aktivace (-)",null,null,null,null,null,null,null,null,null,null,null,null,null,null,null,null,null,8,null,"585, 586, 587, 588",null,null,null,null,null,{"$f":"AE28+AE29","v":0}]
["D.",null,null,null,"Osobní náklady                                                                                       (ř. 10 + 11)",null,null,null,null,null,null,null,null,null,null,null,null,null,null,null,null,null,9]
[null,"D.1.",null,null,"Mzdové náklady",null,null,null,null,null,null,null,null,null,null,null,null,null,null,null,null,null,10,null,"521, 522, 523"]
[null,"D.2.",null,null,"Náklady na sociální zabezpečení, zdravotní pojištění a ostatní náklady (ř.12+13)",null,null,null,null,null,null,null,null,null,null,null,null,null,null,null,null,null,11,null,null,null,null,null,null,null,{"$f":"AE22+AE23-AE27","v":0}]
[null,null,"D.2.1.",null,"Náklady na sociální zabezpečení a zdravotní pojištění",null,null,null,null,null,null,null,null,null,null,null,null,null,null,null,null,null,12,null,"524, 525, 526",null,null,null,null,null,{"$f":"SUM(AE32:AJ35)","v":0}]
[null,null,"D.2.2.",null,"Ostatní náklady",null,null,null,null,null,null,null,null,null,null,null,null,null,null,null,null,null,13,null,"527, 528"]
["E.",null,null,null,"Úpravy hodnot v provozní oblasti                                                   (ř. 15 + 18 + 19)",null,null,null,null,null,null,null,null,null,null,null,null,null,null,null,null,null,14]
[null,"E.1.",null,null,"Úpravy hodnot dlouhodobého nehmotného a hmotného majetku   (ř. 16 + 17)",null,null,null,null,null,null,null,null,null,null,null,null,null,null,null,null,null,15]
[null,null,"E.1.1.",null,"Úpravy hodnot dlouhodobého nehmotného a hmotného majetku - trvalé",null,null,null,null,null,null,null,null,null,null,null,null,null,null,null,null,null,16,null,"551, 557"]
[null,null,"E.1.2.",null,"Úpravy hodnot dlouhodobého nehmotného a hmotného majetku - dočasné",null,null,null,null,null,null,null,null,null,null,null,null,null,null,null,null,null,17,null,"559 AÚ"]
[null,"E.2.",null,null,"Úpravy hodnot zásob",null,null,null,null,null,null,null,null,null,null,null,null,null,null,null,null,null,18,null,"559 AÚ"]
[null,"E.3.",null,null,"Úpravy hodnot pohledávek",null,null,null,null,null,null,null,null,null,null,null,null,null,null,null,null,null,19,null,"558, 559 AÚ",null,null,null,null,null,{"$f":"AE39+AE40","v":0}]
["III.",null,null,null,"Ostatní provozní výnosy                                                                        (ř. 21 až 23)",null,null,null,null,null,null,null,null,null,null,null,null,null,null,null,null,null,20]
[null,"III.1.",null,null,"Tržby z prodaného dlouhodobého majetku",null,null,null,null,null,null,null,null,null,null,null,null,null,null,null,null,null,21,null,641]
[null,"III.2.",null,null,"Tržby z prodaného materiálu",null,null,null,null,null,null,null,null,null,null,null,null,null,null,null,null,null,22,null,642,null,null,null,null,null,{"$f":"AE42+AE43","v":0}]
[null,"III.3.",null,null,"Jiné provozní výnosy",null,null,null,null,null,null,null,null,null,null,null,null,null,null,null,null,null,23,null,"644, 646, 648, 649, 697"]
["F.",null,null,null,"Ostatní provozní náklady                                                                      (ř. 25 až 29)",null,null,null,null,null,null,null,null,null,null,null,null,null,null,null,null,null,24]
[null,"F.1.",null,null,"Zůstatková cena prodaného dlouhodobého majetku",null,null,null,null,null,null,null,null,null,null,null,null,null,null,null,null,null,25,null,541]
[null,"F.2.",null,null,"Prodaný materiál",null,null,null,null,null,null,null,null,null,null,null,null,null,null,null,null,null,26,null,542]
[null,"F.3.",null,null,"Daně a poplatky",null,null,null,null,null,null,null,null,null,null,null,null,null,null,null,null,null,27,null,"531, 532, 538"]
[null,"F.4.",null,null,"Rezervy v provozní oblasti a komplexní náklady příštích období",null,null,null,null,null,null,null,null,null,null,null,null,null,null,null,null,null,28,null,"552, 554, 555"]
[null,"F.5.",null,null,"Jiné provozní náklady",null,null,null,null,null,null,null,null,null,null,null,null,null,null,null,null,null,29,null,"543, 544, 545, 546, 547, 548, 549, 597"]
["*",null,null,null,"Provozní výsledek hospodaření  (+/-)                                                                                                                          [ř. 1 + 2 - 3 - (+/-) 7 - (-) 8 - 9 - (+/-) 14 + 20 - 24]               ",null,null,null,null,null,null,null,null,null,null,null,null,null,null,null,null,null,30,null,null,null,null,null,null,null,{"$f":"AE30-AE31-AE36-AE37+AE38-AE41-AE44+AE45-AE46+(-AE47)-(-AE48)","v":0}]
[]
[]
["Označení\n\n\na",null,null,null,"TEXT            \n\n\nb",null,null,null,null,null,null,null,null,null,null,null,null,null,null,null,null,null,"Číslo řádku\n\nc",null,"Skutečnost v účetním období"]
[null,null,null,null,null,null,null,null,null,null,null,null,null,null,null,null,null,null,null,null,null,null,null,null,"běžném - přiřazené účty\n1",null,null,null,null,null,"minulém\n2"]
["IV.",null,null,null,"Výnosy z dlouhodobého finančního majetku - podíly                              (ř. 32 + 33)",null,null,null,null,null,null,null,null,null,null,null,null,null,null,null,null,null,31]
[null,"IV.1.",null,null,"Výnosy z podílů - ovládaná nebo ovládající osoba",null,null,null,null,null,null,null,null,null,null,null,null,null,null,null,null,null,32,null,"661 AÚ, 665 AÚ"]
[null,"IV.2.",null,null,"Ostatní výnosy z podílů",null,null,null,null,null,null,null,null,null,null,null,null,null,null,null,null,null,33,null,"661 AÚ, 665 AÚ",null,null,null,null,null,{"$f":"SUM(AE57:AJ59)","v":0}]
["G.",null,null,null,"Náklady vynaložené na prodané podíly",null,null,null,null,null,null,null,null,null,null,null,null,null,null,null,null,null,{"$f":"W56+1","v":34},null,"561 AÚ"]
["V.","    VII. 2.",null,null,"Výnosy z ostatního dlouhodobého finančního majetku                           (ř. 36 + 37)",null,null,null,null,null,null,null,null,null,null,null,null,null,null,null,null,null,35]
[null,"V.1.",null,null,"Výnosy z ostatního dlouhodobého finančního majetku  - ovládaná nebo ovládající osoba",null,null,null,null,null,null,null,null,null,null,null,null,null,null,null,null,null,36,null,"661 AÚ, 665 AÚ"]
[null,"V.2.",null,null,"Ostatní výnosy z ostatního dlouhodobého finančního majetku",null,null,null,null,null,null,null,null,null,null,null,null,null,null,null,null,null,37,null,"661 AÚ, 665 AÚ"]
["H.","K.",null,null,"Náklady související s ostatním dlouhodobým finančním majetkem",null,null,null,null,null,null,null,null,null,null,null,null,null,null,null,null,null,38,null,"561 AÚ, 566 AÚ"]
["VI.","     IX.",null,null,"Výnosové úroky a podobné výnosy                                                        (ř. 40 + 41)",null,null,null,null,null,null,null,null,null,null,null,null,null,null,null,null,null,39]
[null,"VI.1.",null,null,"Výnosové úroky a podobné výnosy - ovládaná nebo ovládající osoba",null,null,null,null,null,null,null,null,null,null,null,null,null,null,null,null,null,40,null,"662 AÚ, 665 AÚ"]
[null,"VI.2.",null,null,"Ostatní výnosové úroky a podobné výnosy",null,null,null,null,null,null,null,null,null,null,null,null,null,null,null,null,null,41,null,"662 AÚ, 665 AÚ"]
["I.","     X.",null,null,"Úprava hodnot a rezervy ve finanční oblasti",null,null,null,null,null,null,null,null,null,null,null,null,null,null,null,null,null,42,null,"574, 579"]
["J.","N.",null,null,"Nákladové úroky a podobné náklady                                                     (ř. 44 + 45)",null,null,null,null,null,null,null,null,null,null,null,null,null,null,null,null,null,43]
[null,"J.1.",null,null,"Nákladové úroky a podobné náklady - ovládaná nebo ovládající osoba",null,null,null,null,null,null,null,null,null,null,null,null,null,null,null,null,null,44,null,"562 AÚ"]
[null,"J.2.",null,null,"Ostatní nákladové úroky a podobné náklady",null,null,null,null,null,null,null,null,null,null,null,null,null,null,null,null,null,45,null,"562 AÚ"]
["VII.","    XII.",null,null,"Ostatní finanční výnosy",null,null,null,null,null,null,null,null,null,null,null,null,null,null,null,null,null,46,null,"661 AÚ, 663, 664, 666, 667, 668, 669, 698"]
["K.","P.",null,null,"Ostatní finanční náklady",null,null,null,null,null,null,null,null,null,null,null,null,null,null,null,null,null,47,null,"561 AÚ, 563, 564, 565, 566 AÚ, 567, 568, 569, 598"]
["*",null,null,null,"Finanční výsledek hospodaření  (+/-)                                                                         [ř. 31 - 34 + 35 - 38 + 39 -(+/-) 42 - 43 + 46 - 47]",null,null,null,null,null,null,null,null,null,null,null,null,null,null,null,null,null,48,null,null,null,null,null,null,null,{"$f":"AE54-AE55+AE56+AE60-AE61+AE62-AE63-AE64+AE65-AE66+AE67-AE68+(-AE69)-(-AE70)","v":0}]
["**","Q.",null,null,"Výsledek hospodaření před zdaněním  (+/-)                                        (ř. 30 + 48)                ",null,null,null,null,null,null,null,null,null,null,null,null,null,null,null,null,null,49,null,null,null,null,null,null,null,{"$f":"AE73+AE74","v":0}]
["L.","Q. 1.",null,null,"Daň z příjmů                                                                                       (ř. 51 + (+/-) 52)",null,null,null,null,null,null,null,null,null,null,null,null,null,null,null,null,null,50]
[null,"L.1.",null,null,"Daň z příjmů splatná",null,null,null,null,null,null,null,null,null,null,null,null,null,null,null,null,null,51,null,"591, 595, 599"]
[null,"L.2.",null,null,"Daň z příjmů odložená  (+/-)",null,null,null,null,null,null,null,null,null,null,null,null,null,null,null,null,null,52,null,592,null,null,null,null,null,{"$f":"AE49+AE71-AE72","v":0}]
["**","Q.",null,null,"Výsledek hospodaření po zdanění  (+/-)                                                 (ř. 49 - 50)",null,null,null,null,null,null,null,null,null,null,null,null,null,null,null,null,null,53]
["M.","R.",null,null,"Převod podílu na výsledku hospodaření společníkům (+/-)",null,null,null,null,null,null,null,null,null,null,null,null,null,null,null,null,null,54,null,596]
["***","Q.",null,null,"Výsledek hospodaření za účetní období (+/-)                                        (ř. 53 - 54)",null,null,null,null,null,null,null,null,null,null,null,null,null,null,null,null,null,55,null,null,null,null,null,null,null,{"$f":"AE79+AE80","v":0}]
["*","Q.",null,null,"Čistý obrat za účetní období                                  (ř. 1 + 2 + 20 + 31 + 35 + 39 + 46)",null,null,null,null,null,null,null,null,null,null,null,null,null,null,null,null,null,56,null," = I. + II. + III. + IV. + V. + VI. + VII."]
[]
[]
[]
[]
[]
[]
[]
[null,"Sestaveno dne: ……………………………."]
[null,"Právní forma účetní jednotky: ……………………………………………………………………………………………………"]
[null,"Předmět podnikání účetní jednotky: ………………………………………………………………………………………………"]
[null,"Podpisový záznam: "]